[Event "Titled Tuesday Blitz January 31 Early 2023"]
[White "Delorme, Alban"]
[Black "Bruned, Yvain"]
[WhiteFideId "623636"]
[BlackFideId "2250292"]
[WhiteElo "2298"]
[BlackElo "2286"]
[Result "0-1"]
[Round "05"]
[TimeControl "180+2"]
[Date "2023.01.31"]
[WhiteClock "0:00:05"]
[BlackClock "0:00:06"]

1. e4 {[%clk 0:03:00]}  b6 {[%clk 0:03:00]} 2. d4 {[%clk 0:03:00]}  Bb7 {[%clk 0:03:01]} 3. Bd3 {[%clk 0:03:00]}  e6 {[%clk 0:03:02]} 4. Nf3 {[%clk 0:02:56]}  d5 {[%clk 0:03:02]} 5. exd5 {[%clk 0:02:53]}  Qxd5 {[%clk 0:03:03]} 6. c4 {[%clk 0:02:48]}  Qd8 {[%clk 0:02:59]} 7. Nc3 {[%clk 0:02:49]}  Nf6 {[%clk 0:02:57]} 8. O-O {[%clk 0:02:48]}  Be7 {[%clk 0:02:56]} 9. Bg5 {[%clk 0:02:33]}  O-O {[%clk 0:02:54]} 10. Qe2 {[%clk 0:02:28]}  Nbd7 {[%clk 0:02:52]} 11. Rad1 {[%clk 0:02:25]}  h6 {[%clk 0:02:51]} 12. Bh4 {[%clk 0:02:25]}  Re8 {[%clk 0:02:45]} 13. Ne5 {[%clk 0:02:25]}  Nxe5 {[%clk 0:02:27]} 14. dxe5 {[%clk 0:02:16]}  Nd7 {[%clk 0:02:26]} 15. Bxe7 {[%clk 0:02:17]}  Qxe7 {[%clk 0:02:27]} 16. Be4 {[%clk 0:02:16]}  Nc5 {[%clk 0:01:49]} 17. Bxb7 {[%clk 0:02:14]}  Nxb7 {[%clk 0:01:50]} 18. Qe4 {[%clk 0:02:00]}  c5 {[%clk 0:01:28]} 19. Nb5 {[%clk 0:01:50]}  a6 {[%clk 0:00:55]} 20. Nd6 {[%clk 0:01:45]}  Nxd6 {[%clk 0:00:47]} 21. Rxd6 {[%clk 0:01:41]}  Rab8 {[%clk 0:00:47]} 22. Rfd1 {[%clk 0:01:30]}  Rb7 {[%clk 0:00:46]} 23. Qc6 {[%clk 0:01:23]}  Reb8 {[%clk 0:00:35]} 24. g3 {[%clk 0:01:14]}  Rc7 {[%clk 0:00:30]} 25. Rd7 {[%clk 0:00:45]}  Rxc6 {[%clk 0:00:18]} 26. Rxe7 {[%clk 0:00:45]}  b5 {[%clk 0:00:18]} 27. Rdd7 {[%clk 0:00:39]}  Rf8 {[%clk 0:00:17]} 28. Rd6 {[%clk 0:00:14]}  Rfc8 {[%clk 0:00:13]} 29. Rdd7 {[%clk 0:00:08]}  Rf8 {[%clk 0:00:12]} 30. b3 {[%clk 0:00:08]}  bxc4 {[%clk 0:00:12]} 31. bxc4 {[%clk 0:00:09]}  Rb6 {[%clk 0:00:12]} 32. Rc7 {[%clk 0:00:06]}  Rb2 {[%clk 0:00:11]} 33. Rxc5 {[%clk 0:00:02]}  Rxa2 {[%clk 0:00:12]} 34. Rcc7 {[%clk 0:00:02]}  a5 {[%clk 0:00:10]} 35. c5 {[%clk 0:00:03]}  a4 {[%clk 0:00:10]} 36. Ra7 {[%clk 0:00:04]}  Rc2 {[%clk 0:00:05]} 37. Rec7 {[%clk 0:00:04]}  Rc4 {[%clk 0:00:06]} 38. c6 {[%clk 0:00:02]}  g6 {[%clk 0:00:06]} 39. Kg2 {[%clk 0:00:02]}  h5 {[%clk 0:00:06]} 40. Rab7 {[%clk 0:00:02]}  Kg7 {[%clk 0:00:07]} 41. Ra7 {[%clk 0:00:02]}  Kg8 {[%clk 0:00:06]} 42. Rcb7 {[%clk 0:00:02]}  Rxc6 {[%clk 0:00:06]} 43. Rxa4 {[%clk 0:00:03]}  Rc5 {[%clk 0:00:07]} 44. f4 {[%clk 0:00:02]}  Rc2+ {[%clk 0:00:07]} 45. Kh3 {[%clk 0:00:03]}  Rc5 {[%clk 0:00:08]} 46. Raa7 {[%clk 0:00:03]}  Kg7 {[%clk 0:00:08]} 47. Rd7 {[%clk 0:00:03]}  Rc4 {[%clk 0:00:08]} 48. Kg2 {[%clk 0:00:04]}  Rc2+ {[%clk 0:00:08]} 49. Kg1 {[%clk 0:00:04]}  Rc4 {[%clk 0:00:08]} 50. Rac7 {[%clk 0:00:03]}  Rxc7 {[%clk 0:00:08]} 51. Rxc7 {[%clk 0:00:04]}  Rb8 {[%clk 0:00:08]} 52. Rc2 {[%clk 0:00:03]}  Rb1+ {[%clk 0:00:08]} 53. Kg2 {[%clk 0:00:04]}  Rb3 {[%clk 0:00:09]} 54. Rd2 {[%clk 0:00:04]}  Rb5 {[%clk 0:00:09]} 55. Kf2 {[%clk 0:00:05]}  g5 {[%clk 0:00:10]} 56. Kf3 {[%clk 0:00:04]}  Kg6 {[%clk 0:00:10]} 57. Rd3 {[%clk 0:00:03]}  g4+ {[%clk 0:00:10]} 58. Kf2 {[%clk 0:00:04]}  Rb4 {[%clk 0:00:10]} 59. Rc3 {[%clk 0:00:03]}  Rd4 {[%clk 0:00:10]} 60. Rc2 {[%clk 0:00:03]}  Rd3 {[%clk 0:00:10]} 61. Ke2 {[%clk 0:00:03]}  Rf3 {[%clk 0:00:11]} 62. Rd2 {[%clk 0:00:04]}  Ra3 {[%clk 0:00:10]} 63. Rd3 {[%clk 0:00:04]}  Ra2+ {[%clk 0:00:10]} 64. Rd2 {[%clk 0:00:04]}  Ra4 {[%clk 0:00:10]} 65. Ke3 {[%clk 0:00:04]}  Rb4 {[%clk 0:00:09]} 66. Rd8 {[%clk 0:00:04]}  Kg7 {[%clk 0:00:08]} 67. Rd2 {[%clk 0:00:04]}  Rb3+ {[%clk 0:00:09]} 68. Rd3 {[%clk 0:00:04]}  Rb2 {[%clk 0:00:08]} 69. Rd2 {[%clk 0:00:05]}  Rb5 {[%clk 0:00:09]} 70. Ke2 {[%clk 0:00:03]}  Ra5 {[%clk 0:00:10]} 71. Ke3 {[%clk 0:00:03]}  Kf8 {[%clk 0:00:08]} 72. Kd4 {[%clk 0:00:03]}  Ra4+ {[%clk 0:00:07]} 73. Ke3 {[%clk 0:00:04]}  Ra5 {[%clk 0:00:07]} 74. Kd4 {[%clk 0:00:03]}  Rd5+ {[%clk 0:00:05]} 75. Kc3 {[%clk 0:00:04]}  Rc5+ {[%clk 0:00:05]} 76. Kb4 {[%clk 0:00:04]}  Rc1 {[%clk 0:00:05]} 77. Kb3 {[%clk 0:00:03]}  Kg7 {[%clk 0:00:05]} 78. Kb2 {[%clk 0:00:03]}  Rf1 {[%clk 0:00:06]} 79. Kc3 {[%clk 0:00:03]}  h4 {[%clk 0:00:06]} 80. Kd4 {[%clk 0:00:02]}  h3 {[%clk 0:00:06]} 81. Ke3 {[%clk 0:00:02]}  Rg1 {[%clk 0:00:06]} 82. Kf2 {[%clk 0:00:02]}  Rg2+ {[%clk 0:00:05]} 83. Ke3 {[%clk 0:00:02]}  Rg1 {[%clk 0:00:06]} 84. Re2 {[%clk 0:00:02]}  Kg6 {[%clk 0:00:05]} 85. Kf2 {[%clk 0:00:03]}  Rg2+ {[%clk 0:00:05]} 86. Ke3 {[%clk 0:00:04]}  Rg1 {[%clk 0:00:05]} 87. Kf2 {[%clk 0:00:04]}  Ra1 {[%clk 0:00:05]} 88. Ke3 {[%clk 0:00:04]}  Kf5 {[%clk 0:00:06]} 89. Kf2 {[%clk 0:00:05]}  Ra3 {[%clk 0:00:06]} 90. Re3 {[%clk 0:00:04]}  Ra2+ {[%clk 0:00:05]} 91. Kg1 {[%clk 0:00:02]}  Rg2+ {[%clk 0:00:05]} 92. Kh1 {[%clk 0:00:01]}  Rc2 {[%clk 0:00:06]} 93. Re1 {[%clk 0:00:01]}  Rc3 {[%clk 0:00:07]} 94. Kg1 {[%clk 0:00:02]}  Rf3 {[%clk 0:00:07]} 95. Re2 {[%clk 0:00:02]}  Rd3 {[%clk 0:00:07]} 96. Kf2 {[%clk 0:00:02]}  Ra3 {[%clk 0:00:06]} 97. Ke1 {[%clk 0:00:02]}  Ra1+ {[%clk 0:00:05]} 98. Kf2 {[%clk 0:00:03]}  Rh1 {[%clk 0:00:05]} 99. Rd2 {[%clk 0:00:03]}  Rxh2+ {[%clk 0:00:04]} 100. Ke3 {[%clk 0:00:04]}  Rxd2 {[%clk 0:00:05]} 101. Kxd2 {[%clk 0:00:05]}  h2 {[%clk 0:00:06]} 0-1


[Site "https://www.chess.com"]

[Event "Titled Tuesday Blitz January 31 Early 2023"]
[White "Baruch, Liam"]
[Black "Fajdetic, Hrvoje"]
[WhiteFideId "14322064"]
[BlackFideId "14501945"]
[WhiteElo "1718"]
[BlackElo "2151"]
[Result "0-1"]
[Round "05"]
[TimeControl "180+2"]
[Date "2023.01.31"]
[WhiteClock "0:00:02"]
[BlackClock "0:00:19"]

1. e4 {[%clk 0:03:00]}  c5 {[%clk 0:02:54]} 2. Nf3 {[%clk 0:03:01]}  a6 {[%clk 0:02:53]} 3. d4 {[%clk 0:03:01]}  cxd4 {[%clk 0:02:54]} 4. Nxd4 {[%clk 0:03:01]}  Nf6 {[%clk 0:02:54]} 5. Nc3 {[%clk 0:03:02]}  e5 {[%clk 0:02:54]} 6. Nb3 {[%clk 0:03:02]}  Bb4 {[%clk 0:02:53]} 7. Bd3 {[%clk 0:03:01]}  d5 {[%clk 0:02:51]} 8. exd5 {[%clk 0:02:46]}  Qxd5 {[%clk 0:02:50]} 9. O-O {[%clk 0:02:43]}  Bxc3 {[%clk 0:02:49]} 10. bxc3 {[%clk 0:02:44]}  O-O {[%clk 0:02:48]} 11. Bg5 {[%clk 0:02:40]}  Nbd7 {[%clk 0:02:19]} 12. c4 {[%clk 0:02:27]}  Qc6 {[%clk 0:02:12]} 13. Re1 {[%clk 0:02:21]}  a5 {[%clk 0:02:03]} 14. Nd2 {[%clk 0:02:15]}  Re8 {[%clk 0:01:59]} 15. Ne4 {[%clk 0:02:13]}  Nxe4 {[%clk 0:01:55]} 16. Rxe4 {[%clk 0:01:32]}  Nf8 {[%clk 0:01:52]} 17. Rh4 {[%clk 0:01:27]}  e4 {[%clk 0:01:39]} 18. Be2 {[%clk 0:01:08]}  Qg6 {[%clk 0:01:33]} 19. Be3 {[%clk 0:01:04]}  Bf5 {[%clk 0:01:22]} 20. Bh5 {[%clk 0:00:56]}  Qf6 {[%clk 0:01:22]} 21. Rf4 {[%clk 0:00:55]}  Rad8 {[%clk 0:01:16]} 22. Qc1 {[%clk 0:00:45]}  Ne6 {[%clk 0:01:15]} 23. Be2 {[%clk 0:00:24]}  Nxf4 {[%clk 0:01:13]} 24. Bxf4 {[%clk 0:00:25]}  h6 {[%clk 0:01:05]} 25. Rb1 {[%clk 0:00:25]}  Bc8 {[%clk 0:01:01]} 26. h3 {[%clk 0:00:24]}  Qc6 {[%clk 0:00:51]} 27. Be3 {[%clk 0:00:22]}  Be6 {[%clk 0:00:50]} 28. Rb6 {[%clk 0:00:22]}  Qc8 {[%clk 0:00:49]} 29. Qf1 {[%clk 0:00:21]}  Rd7 {[%clk 0:00:46]} 30. Rb2 {[%clk 0:00:20]}  Rc7 {[%clk 0:00:45]} 31. c5 {[%clk 0:00:20]}  Bd5 {[%clk 0:00:35]} 32. Rb5 {[%clk 0:00:18]}  a4 {[%clk 0:00:34]} 33. Ra5 {[%clk 0:00:18]}  Qd7 {[%clk 0:00:32]} 34. Bb5 {[%clk 0:00:17]}  Bc6 {[%clk 0:00:31]} 35. Bxc6 {[%clk 0:00:16]}  Qxc6 {[%clk 0:00:31]} 36. Qb5 {[%clk 0:00:16]}  Qxb5 {[%clk 0:00:29]} 37. Rxb5 {[%clk 0:00:17]}  Ra8 {[%clk 0:00:29]} 38. Rb4 {[%clk 0:00:17]}  f5 {[%clk 0:00:28]} 39. a3 {[%clk 0:00:16]}  Ra5 {[%clk 0:00:28]} 40. Kf1 {[%clk 0:00:16]}  g5 {[%clk 0:00:28]} 41. g3 {[%clk 0:00:16]}  Ra6 {[%clk 0:00:27]} 42. Ke2 {[%clk 0:00:15]}  Rf6 {[%clk 0:00:27]} 43. Rxa4 {[%clk 0:00:15]}  f4 {[%clk 0:00:25]} 44. gxf4 {[%clk 0:00:15]}  gxf4 {[%clk 0:00:26]} 45. Bd4 {[%clk 0:00:14]}  Re6 {[%clk 0:00:26]} 46. c3 {[%clk 0:00:14]}  Rf7 {[%clk 0:00:25]} 47. Ra8+ {[%clk 0:00:13]}  Kh7 {[%clk 0:00:24]} 48. Rh8+ {[%clk 0:00:14]}  Kg6 {[%clk 0:00:25]} 49. Rg8+ {[%clk 0:00:14]}  Kf5 {[%clk 0:00:25]} 50. Rh8 {[%clk 0:00:12]}  Ra6 {[%clk 0:00:23]} 51. a4 {[%clk 0:00:08]}  Rxa4 {[%clk 0:00:23]} 52. Rxh6 {[%clk 0:00:08]}  Ra2+ {[%clk 0:00:23]} 53. Kd1 {[%clk 0:00:08]}  e3 {[%clk 0:00:20]} 54. Rh5+ {[%clk 0:00:08]}  Ke4 {[%clk 0:00:20]} 55. fxe3 {[%clk 0:00:08]}  Kd3 {[%clk 0:00:20]} 56. c4 {[%clk 0:00:06]}  fxe3 {[%clk 0:00:20]} 57. Ke1 {[%clk 0:00:03]}  Re2+ {[%clk 0:00:18]} 58. Kd1 {[%clk 0:00:02]}  Rf1# {[%clk 0:00:19]} 0-1


[Site "https://www.chess.com"]

[Event "Titled Tuesday Blitz January 31 Early 2023"]
[White "Sychev, Klementy"]
[Black "Kostiukov, Alexandr"]
[WhiteFideId "4114060"]
[BlackFideId "14108100"]
[WhiteElo "2547"]
[BlackElo "2271"]
[Result "1-0"]
[Round "05"]
[TimeControl "180+2"]
[Date "2023.01.31"]
[WhiteClock "0:01:41"]
[BlackClock "0:00:04"]

1. e4 {[%clk 0:02:57]}  c5 {[%clk 0:02:57]} 2. Nf3 {[%clk 0:02:57]}  g6 {[%clk 0:02:57]} 3. d4 {[%clk 0:02:56]}  cxd4 {[%clk 0:02:58]} 4. Nxd4 {[%clk 0:02:57]}  Bg7 {[%clk 0:02:58]} 5. Nc3 {[%clk 0:02:57]}  Nc6 {[%clk 0:02:59]} 6. Be3 {[%clk 0:02:58]}  Nf6 {[%clk 0:02:59]} 7. Nxc6 {[%clk 0:02:58]}  bxc6 {[%clk 0:02:59]} 8. e5 {[%clk 0:02:59]}  Ng8 {[%clk 0:02:59]} 9. Bd4 {[%clk 0:02:59]}  f6 {[%clk 0:02:47]} 10. exf6 {[%clk 0:02:59]}  Nxf6 {[%clk 0:02:46]} 11. Bc4 {[%clk 0:02:58]}  d5 {[%clk 0:02:35]} 12. Bb3 {[%clk 0:02:58]}  O-O {[%clk 0:02:30]} 13. O-O {[%clk 0:02:57]}  Qd6 {[%clk 0:02:15]} 14. Bxf6 {[%clk 0:02:38]}  Qxf6 {[%clk 0:01:44]} 15. Nxd5 {[%clk 0:02:35]}  cxd5 {[%clk 0:01:21]} 16. Qxd5+ {[%clk 0:02:34]}  Kh8 {[%clk 0:01:04]} 17. Qxa8 {[%clk 0:02:33]}  Ba6 {[%clk 0:01:01]} 18. Qxa7 {[%clk 0:02:32]}  Bxf1 {[%clk 0:00:59]} 19. Rxf1 {[%clk 0:02:32]}  Qxb2 {[%clk 0:00:52]} 20. Qxe7 {[%clk 0:02:31]}  Qd4 {[%clk 0:00:48]} 21. g3 {[%clk 0:02:25]}  h5 {[%clk 0:00:38]} 22. a4 {[%clk 0:02:23]}  Rf3 {[%clk 0:00:20]} 23. a5 {[%clk 0:02:17]}  Be5 {[%clk 0:00:15]} 24. a6 {[%clk 0:02:00]}  Bxg3 {[%clk 0:00:10]} 25. hxg3 {[%clk 0:01:58]}  Rxg3+ {[%clk 0:00:11]} 26. Kh2 {[%clk 0:01:57]}  Rg4 {[%clk 0:00:09]} 27. Qf8+ {[%clk 0:01:48]}  Kh7 {[%clk 0:00:09]} 28. Bg8+ {[%clk 0:01:49]}  Kh8 {[%clk 0:00:07]} 29. Be6+ {[%clk 0:01:48]}  Kh7 {[%clk 0:00:07]} 30. Bxg4 {[%clk 0:01:47]}  hxg4 {[%clk 0:00:07]} 31. Qe7+ {[%clk 0:01:44]}  Kh6 {[%clk 0:00:06]} 32. a7 {[%clk 0:01:42]}  Qf4+ {[%clk 0:00:05]} 33. Kg2 {[%clk 0:01:42]}  Qf3+ {[%clk 0:00:06]} 34. Kg1 {[%clk 0:01:42]}  g3 {[%clk 0:00:04]} 35. Qe3+ {[%clk 0:01:41]} 1-0


[Site "https://www.chess.com"]

[Event "Titled Tuesday Blitz January 31 Early 2023"]
[White "Vasques, Antonio Pedro Freixial"]
[Black "Ibarra Jerez, Jose Carlos"]
[WhiteFideId "1908332"]
[BlackFideId "2226332"]
[WhiteElo "2214"]
[BlackElo "2563"]
[Result "0-1"]
[Round "05"]
[TimeControl "180+2"]
[Date "2023.01.31"]
[WhiteClock "0:00:16"]
[BlackClock "0:00:49"]

1. e4 {[%clk 0:03:00]}  c5 {[%clk 0:02:58]} 2. Nf3 {[%clk 0:02:58]}  Nc6 {[%clk 0:02:58]} 3. d4 {[%clk 0:02:58]}  cxd4 {[%clk 0:02:58]} 4. Nxd4 {[%clk 0:02:59]}  e5 {[%clk 0:02:57]} 5. Nb5 {[%clk 0:02:58]}  d6 {[%clk 0:02:57]} 6. N1c3 {[%clk 0:02:56]}  a6 {[%clk 0:02:55]} 7. Na3 {[%clk 0:02:57]}  Be6 {[%clk 0:02:56]} 8. g3 {[%clk 0:02:48]}  h5 {[%clk 0:02:50]} 9. h4 {[%clk 0:02:45]}  Nf6 {[%clk 0:02:49]} 10. Bg5 {[%clk 0:02:43]}  Be7 {[%clk 0:02:49]} 11. Bxf6 {[%clk 0:02:32]}  Bxf6 {[%clk 0:02:49]} 12. Bh3 {[%clk 0:02:33]}  b5 {[%clk 0:02:38]} 13. Nd5 {[%clk 0:02:31]}  Rc8 {[%clk 0:02:24]} 14. c3 {[%clk 0:02:26]}  Bxh3 {[%clk 0:02:15]} 15. Rxh3 {[%clk 0:02:26]}  Ne7 {[%clk 0:02:16]} 16. Nc2 {[%clk 0:02:16]}  Nxd5 {[%clk 0:02:15]} 17. Qxd5 {[%clk 0:02:07]}  Qd7 {[%clk 0:02:15]} 18. Rh1 {[%clk 0:01:52]}  O-O {[%clk 0:02:15]} 19. O-O-O {[%clk 0:01:51]}  Rfd8 {[%clk 0:02:15]} 20. Ne3 {[%clk 0:01:51]}  b4 {[%clk 0:02:05]} 21. c4 {[%clk 0:01:51]}  Qa4 {[%clk 0:02:05]} 22. Kb1 {[%clk 0:01:51]}  b3 {[%clk 0:02:05]} 23. a3 {[%clk 0:01:51]}  g6 {[%clk 0:02:03]} 24. g4 {[%clk 0:01:45]}  Rc5 {[%clk 0:02:03]} 25. Qd3 {[%clk 0:01:39]}  hxg4 {[%clk 0:01:58]} 26. Nxg4 {[%clk 0:01:39]}  Bg7 {[%clk 0:01:57]} 27. Rc1 {[%clk 0:01:35]}  Rdc8 {[%clk 0:01:53]} 28. Rc3 {[%clk 0:00:27]}  Rxc4 {[%clk 0:01:51]} 29. Rxb3 {[%clk 0:00:27]}  Rxe4 {[%clk 0:01:43]} 30. f3 {[%clk 0:00:20]}  Rd4 {[%clk 0:01:40]} 31. Qe3 {[%clk 0:00:20]}  e4 {[%clk 0:01:22]} 32. Ka2 {[%clk 0:00:19]}  exf3 {[%clk 0:01:20]} 33. Nh6+ {[%clk 0:00:17]}  Bxh6 {[%clk 0:01:02]} 34. Qxh6 {[%clk 0:00:17]}  Qc4 {[%clk 0:01:02]} 35. h5 {[%clk 0:00:15]}  Rd3 {[%clk 0:00:48]} 36. hxg6 {[%clk 0:00:14]}  Qxb3+ {[%clk 0:00:48]} 37. Ka1 {[%clk 0:00:15]}  Rd1+ {[%clk 0:00:48]} 38. Rxd1 {[%clk 0:00:14]}  Qxd1+ {[%clk 0:00:49]} 39. Ka2 {[%clk 0:00:15]}  Qd5+ {[%clk 0:00:49]} 40. Ka1 {[%clk 0:00:16]} 0-1


[Site "https://www.chess.com"]

[Event "Titled Tuesday Blitz January 31 Early 2023"]
[White "Oro, Faustino"]
[Black "Buscar, Michael"]
[WhiteFideId "20000197"]
[BlackFideId "2603616"]
[WhiteElo "2269"]
[BlackElo "2041"]
[Result "1/2-1/2"]
[Round "05"]
[TimeControl "180+2"]
[Date "2023.01.31"]
[WhiteClock "0:00:08"]
[BlackClock "0:00:08"]

1. e4 {[%clk 0:03:00]}  c6 {[%clk 0:02:57]} 2. Nf3 {[%clk 0:03:00]}  d6 {[%clk 0:02:55]} 3. d4 {[%clk 0:02:59]}  Bg4 {[%clk 0:02:53]} 4. Be2 {[%clk 0:02:59]}  Nd7 {[%clk 0:02:52]} 5. h3 {[%clk 0:02:59]}  Bxf3 {[%clk 0:02:50]} 6. Bxf3 {[%clk 0:03:00]}  e5 {[%clk 0:02:50]} 7. c3 {[%clk 0:02:59]}  Ngf6 {[%clk 0:02:49]} 8. O-O {[%clk 0:02:59]}  Be7 {[%clk 0:02:49]} 9. Re1 {[%clk 0:03:00]}  O-O {[%clk 0:02:49]} 10. Nd2 {[%clk 0:03:00]}  a5 {[%clk 0:02:48]} 11. a4 {[%clk 0:02:59]}  Re8 {[%clk 0:02:44]} 12. Nf1 {[%clk 0:02:58]}  Qc7 {[%clk 0:02:41]} 13. Be3 {[%clk 0:02:56]}  Nf8 {[%clk 0:02:41]} 14. Qc2 {[%clk 0:02:54]}  Ng6 {[%clk 0:02:41]} 15. Ng3 {[%clk 0:02:53]}  Bf8 {[%clk 0:02:40]} 16. Be2 {[%clk 0:02:52]}  Nf4 {[%clk 0:02:36]} 17. Bf1 {[%clk 0:02:51]}  d5 {[%clk 0:02:24]} 18. dxe5 {[%clk 0:02:48]}  Qxe5 {[%clk 0:02:20]} 19. Bd4 {[%clk 0:02:46]}  Qg5 {[%clk 0:02:15]} 20. exd5 {[%clk 0:02:39]}  N6xd5 {[%clk 0:02:11]} 21. Ne4 {[%clk 0:02:12]}  Qg6 {[%clk 0:01:52]} 22. g3 {[%clk 0:01:18]}  Ne6 {[%clk 0:01:42]} 23. Qb1 {[%clk 0:01:00]}  Nxd4 {[%clk 0:01:31]} 24. cxd4 {[%clk 0:01:01]}  Rad8 {[%clk 0:01:31]} 25. Bd3 {[%clk 0:01:00]}  Qh5 {[%clk 0:01:24]} 26. Kg2 {[%clk 0:00:57]}  Nb4 {[%clk 0:01:21]} 27. Bc4 {[%clk 0:00:56]}  Rxd4 {[%clk 0:01:06]} 28. Bb3 {[%clk 0:00:47]}  Red8 {[%clk 0:00:52]} 29. Re3 {[%clk 0:00:40]}  Rd3 {[%clk 0:00:48]} 30. Rxd3 {[%clk 0:00:37]}  Rxd3 {[%clk 0:00:48]} 31. Bc4 {[%clk 0:00:36]}  Qf3+ {[%clk 0:00:45]} 32. Kg1 {[%clk 0:00:34]}  Qxe4 {[%clk 0:00:43]} 33. Bxd3 {[%clk 0:00:34]}  Nxd3 {[%clk 0:00:41]} 34. Qc2 {[%clk 0:00:32]}  Nc5 {[%clk 0:00:34]} 35. Qd1 {[%clk 0:00:31]}  g6 {[%clk 0:00:33]} 36. Ra3 {[%clk 0:00:23]}  Ne6 {[%clk 0:00:28]} 37. Re3 {[%clk 0:00:22]}  Qb4 {[%clk 0:00:23]} 38. Qd7 {[%clk 0:00:21]}  Qe7 {[%clk 0:00:16]} 39. Qc8 {[%clk 0:00:20]}  Qc7 {[%clk 0:00:11]} 40. Qe8 {[%clk 0:00:18]}  Kg7 {[%clk 0:00:11]} 41. Rf3 {[%clk 0:00:17]}  Bc5 {[%clk 0:00:11]} 42. Kg2 {[%clk 0:00:16]}  Qe7 {[%clk 0:00:10]} 43. Qa8 {[%clk 0:00:16]}  Qd7 {[%clk 0:00:09]} 44. Qb8 {[%clk 0:00:15]}  b6 {[%clk 0:00:09]} 45. Qe5+ {[%clk 0:00:15]}  Kg8 {[%clk 0:00:08]} 46. Qf6 {[%clk 0:00:14]}  Ng7 {[%clk 0:00:07]} 47. g4 {[%clk 0:00:11]}  h5 {[%clk 0:00:06]} 48. Rg3 {[%clk 0:00:11]}  hxg4 {[%clk 0:00:07]} 49. Rxg4 {[%clk 0:00:10]}  Qd5+ {[%clk 0:00:07]} 50. Kg1 {[%clk 0:00:10]}  Qd1+ {[%clk 0:00:06]} 51. Kg2 {[%clk 0:00:11]}  Qd5+ {[%clk 0:00:07]} 52. Kg1 {[%clk 0:00:11]}  Qf5 {[%clk 0:00:07]} 53. Qd8+ {[%clk 0:00:11]}  Kh7 {[%clk 0:00:07]} 54. Rh4+ {[%clk 0:00:11]}  Nh5 {[%clk 0:00:08]} 55. Rg4 {[%clk 0:00:11]}  Kg7 {[%clk 0:00:07]} 56. Qd2 {[%clk 0:00:11]}  Qf6 {[%clk 0:00:08]} 57. b3 {[%clk 0:00:10]}  Qa1+ {[%clk 0:00:08]} 58. Kg2 {[%clk 0:00:10]}  Qf6 {[%clk 0:00:09]} 59. f3 {[%clk 0:00:09]}  Qf5 {[%clk 0:00:08]} 60. Re4 {[%clk 0:00:08]}  Qf6 {[%clk 0:00:08]} 61. Rg4 {[%clk 0:00:09]}  Qf5 {[%clk 0:00:08]} 62. Qc3+ {[%clk 0:00:07]}  Qf6 {[%clk 0:00:08]} 63. Qd2 {[%clk 0:00:08]} 1/2-1/2


[Site "https://www.chess.com"]

[Event "Titled Tuesday Blitz January 31 Early 2023"]
[White "Pourkashiyan, Atousa"]
[Black "Florescu, Codrut-Constantin"]
[WhiteFideId "12502014"]
[BlackFideId "1202200"]
[WhiteElo "2282"]
[BlackElo "2259"]
[Result "1-0"]
[Round "05"]
[TimeControl "180+2"]
[Date "2023.01.31"]
[WhiteClock "0:01:02"]
[BlackClock "0:01:09"]

1. e4 {[%clk 0:02:59]}  c5 {[%clk 0:02:58]} 2. Nf3 {[%clk 0:02:57]}  e6 {[%clk 0:02:58]} 3. d4 {[%clk 0:02:56]}  cxd4 {[%clk 0:02:58]} 4. Nxd4 {[%clk 0:02:56]}  a6 {[%clk 0:02:59]} 5. Nc3 {[%clk 0:02:56]}  d6 {[%clk 0:02:59]} 6. Be2 {[%clk 0:02:55]}  Nf6 {[%clk 0:02:58]} 7. O-O {[%clk 0:02:54]}  Nbd7 {[%clk 0:02:57]} 8. Be3 {[%clk 0:02:53]}  b5 {[%clk 0:02:54]} 9. a3 {[%clk 0:02:18]}  Bb7 {[%clk 0:02:53]} 10. f3 {[%clk 0:02:18]}  Be7 {[%clk 0:02:48]} 11. Qe1 {[%clk 0:02:03]}  O-O {[%clk 0:02:41]} 12. Qg3 {[%clk 0:02:00]}  Kh8 {[%clk 0:02:37]} 13. Rad1 {[%clk 0:01:58]}  Qc7 {[%clk 0:02:36]} 14. Kh1 {[%clk 0:01:57]}  Rac8 {[%clk 0:02:35]} 15. Bd3 {[%clk 0:01:56]}  Ne5 {[%clk 0:02:31]} 16. f4 {[%clk 0:01:54]}  Nc4 {[%clk 0:02:30]} 17. Bc1 {[%clk 0:01:49]}  g6 {[%clk 0:02:09]} 18. f5 {[%clk 0:01:44]}  gxf5 {[%clk 0:02:00]} 19. exf5 {[%clk 0:01:44]}  Rg8 {[%clk 0:02:00]} 20. Bg5 {[%clk 0:01:24]}  Nh5 {[%clk 0:01:38]} 21. Qh3 {[%clk 0:01:14]}  Rxg5 {[%clk 0:01:37]} 22. Ne4 {[%clk 0:01:10]}  Bxe4 {[%clk 0:01:33]} 23. Bxe4 {[%clk 0:01:11]}  e5 {[%clk 0:01:30]} 24. f6 {[%clk 0:01:07]}  Bxf6 {[%clk 0:01:11]} 25. Nf3 {[%clk 0:01:03]}  Nf4 {[%clk 0:01:09]} 26. Qxh7# {[%clk 0:01:02]} 1-0


[Site "https://www.chess.com"]